[Event "*** SCC Grand Prix: Titled Tuesday Blitz"]
[Site "Chess.com"]
[Date "2020.10.06"]
[Round "1"]
[White "Oleksandr_Bortnyk"]
[Black "PhileKhoob"]
[Result "1-0"]
[WhiteElo "2895"]
[BlackElo "2452"]
[TimeControl "180+1"]
[EndTime "10:06:06 PDT"]
[Termination "Oleksandr_Bortnyk won by resignation"]

1. e4 {[%clk 0:03:00.8]} 1... c5 {[%clk 0:02:59.2]} 2. c3 {[%clk 0:03:00]} 2...
d5 {[%clk 0:02:57.4]} 3. exd5 {[%clk 0:03:00.9]} 3... Qxd5 {[%clk 0:02:57.8]} 4.
d4 {[%clk 0:02:59.1]} 4... Nf6 {[%clk 0:02:57.9]} 5. Nf3 {[%clk 0:02:56]} 5...
Bg4 {[%clk 0:02:55.7]} 6. dxc5 {[%clk 0:02:56]} 6... Qxc5 {[%clk 0:02:51]} 7.
Be3 {[%clk 0:02:55.8]} 7... Qc7 {[%clk 0:02:51]} 8. h3 {[%clk 0:02:56.5]} 8...
Bh5 {[%clk 0:02:47.1]} 9. Na3 {[%clk 0:02:57.1]} 9... a6 {[%clk 0:02:40.9]} 10.
Qa4+ {[%clk 0:02:49.9]} 10... Nc6 {[%clk 0:02:23.1]} 11. g4 {[%clk 0:02:41.9]}
11... Bg6 {[%clk 0:02:22.4]} 12. Bg2 {[%clk 0:02:42.4]} 12... e6 {[%clk
0:02:12.8]} 13. Ne5 {[%clk 0:02:35]} 13... Rc8 {[%clk 0:01:58.5]} 14. Nxc6
{[%clk 0:02:24.1]} 14... bxc6 {[%clk 0:01:58.6]} 15. Qxa6 {[%clk 0:02:00.8]}
15... Be7 {[%clk 0:01:58.8]} 16. Qe2 {[%clk 0:01:44.9]} 16... O-O {[%clk
0:01:57.9]} 17. O-O {[%clk 0:01:35.6]} 17... Bxa3 {[%clk 0:01:57.7]} 18. bxa3
{[%clk 0:01:36.5]} 18... Nd5 {[%clk 0:01:57.4]} 19. Bd4 {[%clk 0:01:35.2]} 19...
Qa5 {[%clk 0:01:49.8]} 20. Qe5 {[%clk 0:01:32.3]} 20... f6 {[%clk 0:01:48.8]}
21. Qxe6+ {[%clk 0:01:32.5]} 21... Bf7 {[%clk 0:01:49.2]} 22. Qd6 {[%clk
0:01:30.4]} 22... Nxc3 {[%clk 0:01:45.1]} 23. Qc5 {[%clk 0:01:10.7]} 23... Ne2+
{[%clk 0:01:29.9]} 24. Kh1 {[%clk 0:01:11.1]} 24... Qa4 {[%clk 0:01:21]} 25. Be3
{[%clk 0:01:09.9]} 25... Nf4 {[%clk 0:01:14.9]} 26. Qb4 {[%clk 0:01:08.3]} 26...
Qxb4 {[%clk 0:01:09.1]} 27. axb4 {[%clk 0:01:09.2]} 27... Nxg2 {[%clk 0:01:10]}
28. Kxg2 {[%clk 0:01:09.4]} 28... Bd5+ {[%clk 0:01:05.3]} 29. Kg3 {[%clk
0:01:09.7]} 29... Ra8 {[%clk 0:01:02.7]} 30. a4 {[%clk 0:01:09.6]} 30... Bb3
{[%clk 0:01:02.7]} 31. a5 {[%clk 0:01:09.3]} 31... Bc4 {[%clk 0:01:03.1]} 32.
Rfe1 {[%clk 0:01:09.9]} 32... Bb5 {[%clk 0:01:02.7]} 33. Bc5 {[%clk 0:01:10.3]}
33... Rf7 {[%clk 0:01:02.5]} 34. a6 {[%clk 0:01:07.6]} 34... Rd7 {[%clk
0:00:59.9]} 35. a7 {[%clk 0:01:07.6]} 35... Kf7 {[%clk 0:00:59.7]} 36. Ra3
{[%clk 0:01:05.8]} 36... h6 {[%clk 0:00:59.9]} 37. Rae3 {[%clk 0:01:05.7]} 37...
Raxa7 {[%clk 0:00:58.3]} 38. Bxa7 {[%clk 0:01:05]} 38... Rxa7 {[%clk 0:00:58.7]}
39. f4 {[%clk 0:01:04.2]} 39... Rd7 {[%clk 0:00:59.1]} 40. f5 {[%clk 0:01:04.7]}
40... Ra7 {[%clk 0:00:59.7]} 41. Kh4 {[%clk 0:01:05]} 41... Rb7 {[%clk
0:00:59.2]} 42. Rd1 {[%clk 0:01:04.8]} 42... Ra7 {[%clk 0:00:59.5]} 43. Rd8
{[%clk 0:01:04.7]} 43... Re7 {[%clk 0:00:58.4]} 44. Rxe7+ {[%clk 0:01:04.2]}
44... Kxe7 {[%clk 0:00:59.3]} 45. Rc8 {[%clk 0:01:04.5]} 45... Kf7 {[%clk
0:01:00.2]} 46. Rc7+ {[%clk 0:01:04.9]} 46... Kg8 {[%clk 0:00:59.7]} 47. Kh5
{[%clk 0:01:05.4]} 47... Kh7 {[%clk 0:01:00.6]} 48. Kh4 {[%clk 0:01:02.4]} 48...
Kg8 {[%clk 0:00:59.9]} 49. Kg3 {[%clk 0:01:02.8]} 49... Kf8 {[%clk 0:01:00.3]}
50. Kf4 {[%clk 0:01:03.4]} 1-0

[Event "*** SCC Grand Prix: Titled Tuesday Blitz"]
[Site "Chess.com"]
[Date "2020.10.06"]
[Round "1"]
[White "DenLaz"]
[Black "IANOV0007"]
[Result "1-0"]
[WhiteElo "2818"]
[BlackElo "2423"]
[TimeControl "180+1"]
[EndTime "10:06:10 PDT"]
[Termination "DenLaz won by resignation"]

1. Nf3 {[%clk 0:02:58.8]} 1... d6 {[%clk 0:02:59.8]} 2. d4 {[%clk 0:02:58.2]}
2... g6 {[%clk 0:02:59.7]} 3. c4 {[%clk 0:02:56.5]} 3... Bg7 {[%clk 0:02:59.5]}
4. g3 {[%clk 0:02:55.2]} 4... Nf6 {[%clk 0:02:58.4]} 5. Bg2 {[%clk 0:02:54.6]}
5... O-O {[%clk 0:02:58.2]} 6. O-O {[%clk 0:02:54.9]} 6... c6 {[%clk 0:02:58.2]}
7. Nc3 {[%clk 0:02:53.6]} 7... Bf5 {[%clk 0:02:57.8]} 8. Ne1 {[%clk 0:02:52.4]}
8... e5 {[%clk 0:02:54.4]} 9. d5 {[%clk 0:02:52]} 9... c5 {[%clk 0:02:53]} 10.
e4 {[%clk 0:02:51.2]} 10... Bd7 {[%clk 0:02:52]} 11. Nd3 {[%clk 0:02:49.4]}
11... Na6 {[%clk 0:02:51.1]} 12. f4 {[%clk 0:02:48.4]} 12... exf4 {[%clk
0:02:49.9]} 13. Bxf4 {[%clk 0:02:46.8]} 13... Ne8 {[%clk 0:02:47]} 14. e5 {[%clk
0:02:36.3]} 14... Qb6 {[%clk 0:02:43.9]} 15. Qe2 {[%clk 0:02:31]} 15... Bf5
{[%clk 0:02:35.8]} 16. e6 {[%clk 0:01:49.2]} 16... Bxd3 {[%clk 0:02:33]} 17.
Qxd3 {[%clk 0:01:48.1]} 17... f5 {[%clk 0:02:31.1]} 18. Rab1 {[%clk 0:01:40.1]}
18... Nf6 {[%clk 0:02:23.8]} 19. Nb5 {[%clk 0:01:37.2]} 19... Nb4 {[%clk
0:02:22]} 20. Qe2 {[%clk 0:01:30.9]} 20... Ne8 {[%clk 0:02:21.4]} 21. h4 {[%clk
0:01:22.5]} 21... a6 {[%clk 0:02:20]} 22. Nc3 {[%clk 0:01:21.4]} 22... Nf6
{[%clk 0:02:15.1]} 23. a3 {[%clk 0:01:20.8]} 23... a5 {[%clk 0:02:10.1]} 24.
axb4 {[%clk 0:01:18.7]} 24... axb4 {[%clk 0:02:10]} 25. Nb5 {[%clk 0:01:18.7]}
25... Ne8 {[%clk 0:02:08.9]} 26. h5 {[%clk 0:01:18.3]} 26... Ra5 {[%clk
0:01:58]} 27. e7 {[%clk 0:01:10.9]} 27... Rf6 {[%clk 0:01:56]} 28. Bg5 {[%clk
0:01:04.3]} 28... Rxb5 {[%clk 0:01:53]} 29. cxb5 {[%clk 0:01:01]} 29... c4+
{[%clk 0:01:45.3]} 30. Kh2 {[%clk 0:00:59.4]} 30... Qxb5 {[%clk 0:01:42.8]} 31.
Bxf6 {[%clk 0:00:58.7]} 31... Bxf6 {[%clk 0:01:42.8]} 32. Rf4 {[%clk 0:00:52.5]}
32... Be5 {[%clk 0:01:41.4]} 33. Qxc4 {[%clk 0:00:51.6]} 33... Qd7 {[%clk
0:01:36]} 34. Re1 {[%clk 0:00:49.9]} 34... Qxe7 {[%clk 0:01:35.4]} 35. Rxe5
{[%clk 0:00:44]} 35... Qxe5 {[%clk 0:01:34.5]} 36. Qd4 {[%clk 0:00:43.8]} 36...
Kg7 {[%clk 0:01:26.8]} 37. Qxe5+ {[%clk 0:00:43]} 37... dxe5 {[%clk 0:01:26.9]}
38. Rxb4 {[%clk 0:00:43.9]} 38... Nd6 {[%clk 0:01:26.8]} 39. Rb6 {[%clk
0:00:43.8]} 39... Nc4 {[%clk 0:01:26.8]} 40. Rxb7+ {[%clk 0:00:43.6]} 40... Kf6
{[%clk 0:01:27]} 41. Rxh7 {[%clk 0:00:42.1]} 41... e4 {[%clk 0:01:26.3]} 42.
hxg6 {[%clk 0:00:40.3]} 42... Kxg6 {[%clk 0:01:23.3]} 43. Rc7 {[%clk 0:00:39.9]}
43... Ne5 {[%clk 0:01:22.3]} 44. d6 {[%clk 0:00:40.1]} 44... Kf6 {[%clk
0:01:22.4]} 45. Bh3 {[%clk 0:00:36.2]} 45... Ke6 {[%clk 0:01:21.6]} 46. d7
{[%clk 0:00:35.6]} 46... Nxd7 {[%clk 0:01:17.5]} 47. Bxf5+ {[%clk 0:00:34.4]}
1-0

[Event "*** SCC Grand Prix: Titled Tuesday Blitz"]
[Site "Chess.com"]
[Date "2020.10.06"]
[Round "1"]
[White "Shield12"]
[Black "Tactictic"]
[Result "1-0"]
[WhiteElo "2840"]
[BlackElo "2435"]
[TimeControl "180+1"]
[EndTime "10:06:14 PDT"]
[Termination "Shield12 won by checkmate"]

1. e4 {[%clk 0:03:00.9]} 1... c5 {[%clk 0:02:59.8]} 2. Nf3 {[%clk 0:02:59.5]}
2... d6 {[%clk 0:03:00.1]} 3. Bb5+ {[%clk 0:02:58.5]} 3... Bd7 {[%clk
0:02:59.8]} 4. Bxd7+ {[%clk 0:02:58.7]} 4... Qxd7 {[%clk 0:03:00.7]} 5. c4
{[%clk 0:02:58.6]} 5... Nc6 {[%clk 0:02:56.6]} 6. Nc3 {[%clk 0:02:56.4]} 6...
Nf6 {[%clk 0:02:56]} 7. d4 {[%clk 0:02:56.5]} 7... cxd4 {[%clk 0:02:55.5]} 8.
Nxd4 {[%clk 0:02:57.4]} 8... g6 {[%clk 0:02:55]} 9. h3 {[%clk 0:02:57]} 9... Bg7
{[%clk 0:02:54.7]} 10. Be3 {[%clk 0:02:57.1]} 10... O-O {[%clk 0:02:52.9]} 11.
O-O {[%clk 0:02:57.3]} 11... Rfc8 {[%clk 0:02:52.5]} 12. b3 {[%clk 0:02:57]}
12... Qd8 {[%clk 0:02:47.8]} 13. Rc1 {[%clk 0:02:56.6]} 13... Qa5 {[%clk
0:02:37.4]} 14. Qd3 {[%clk 0:02:52.7]} 14... Nd7 {[%clk 0:02:30.6]} 15. Rfd1
{[%clk 0:02:52.1]} 15... Nc5 {[%clk 0:02:16.9]} 16. Qd2 {[%clk 0:02:51.8]} 16...
Rab8 {[%clk 0:01:53.2]} 17. Nxc6 {[%clk 0:02:49.3]} 17... bxc6 {[%clk
0:01:42.4]} 18. Bd4 {[%clk 0:02:49.2]} 18... Bxd4 {[%clk 0:01:34.4]} 19. Qxd4
{[%clk 0:02:50.1]} 19... Ne6 {[%clk 0:01:25.3]} 20. Qe3 {[%clk 0:02:50]} 20...
c5 {[%clk 0:01:25]} 21. e5 {[%clk 0:02:49.5]} 21... Nd4 {[%clk 0:01:16.4]} 22.
Nd5 {[%clk 0:02:46.1]} 22... Nf5 {[%clk 0:01:10.3]} 23. Qg5 {[%clk 0:02:41.3]}
23... h6 {[%clk 0:00:51.3]} 24. Nxe7+ {[%clk 0:02:37.4]} 24... Nxe7 {[%clk
0:00:48.1]} 25. Qxe7 {[%clk 0:02:38.3]} 25... dxe5 {[%clk 0:00:48.6]} 26. Rd7
{[%clk 0:02:28.1]} 26... Rf8 {[%clk 0:00:48.4]} 27. Rxa7 {[%clk 0:02:25.9]}
27... Qd2 {[%clk 0:00:42.3]} 28. Rf1 {[%clk 0:02:25.4]} 28... Qd4 {[%clk
0:00:39.5]} 29. Qf6 {[%clk 0:02:12.8]} 29... Rbd8 {[%clk 0:00:23.8]} 30. Re7
{[%clk 0:02:11.4]} 30... Rde8 {[%clk 0:00:15.4]} 31. Re1 {[%clk 0:02:04.3]}
31... Qb2 {[%clk 0:00:15.2]} 32. Qxe5 {[%clk 0:01:57.1]} 32... Rxe7 {[%clk
0:00:12.5]} 33. Qxe7 {[%clk 0:01:54.6]} 33... Qxa2 {[%clk 0:00:12.2]} 34. Qe3
{[%clk 0:01:51.9]} 34... Qa5 {[%clk 0:00:09.9]} 35. Rd1 {[%clk 0:01:51]} 35...
Rb8 {[%clk 0:00:10]} 36. Qxh6 {[%clk 0:01:49]} 36... Rxb3 {[%clk 0:00:06.2]} 37.
Qg5 {[%clk 0:01:48.8]} 37... Rc3 {[%clk 0:00:05]} 38. Rd8+ {[%clk 0:01:46.2]}
38... Kg7 {[%clk 0:00:03.5]} 39. Qe5+ {[%clk 0:01:45.3]} 39... f6 {[%clk
0:00:04]} 40. Rd7+ {[%clk 0:01:38.6]} 40... Kh6 {[%clk 0:00:04.2]} 41. Qf4+
{[%clk 0:01:38.3]} 41... Kh5 {[%clk 0:00:02.9]} 42. Rh7# {[%clk 0:01:37.2]} 1-0

[Event "*** SCC Grand Prix: Titled Tuesday Blitz"]
[Site "Chess.com"]
[Date "2020.10.06"]
[Round "1"]
[White "MasterMK73"]
[Black "vladimirdamjanovic"]
[Result "0-1"]
[WhiteElo "2210"]
[BlackElo "2541"]
[TimeControl "180+1"]
[EndTime "10:06:15 PDT"]
[Termination "vladimirdamjanovic won by resignation"]

1. e4 {[%clk 0:03:00.9]} 1... c5 {[%clk 0:03:00.1]} 2. Nf3 {[%clk 0:02:59.9]}
2... d6 {[%clk 0:03:00.4]} 3. Bb5+ {[%clk 0:02:58.3]} 3... Bd7 {[%clk
0:03:00.1]} 4. Bxd7+ {[%clk 0:02:57.7]} 4... Qxd7 {[%clk 0:03:01]} 5. O-O {[%clk
0:02:57.5]} 5... g5 {[%clk 0:03:01.3]} 6. Re1 {[%clk 0:02:48.8]} 6... g4 {[%clk
0:03:00.9]} 7. Nh4 {[%clk 0:02:48.9]} 7... Nc6 {[%clk 0:02:57.5]} 8. c3 {[%clk
0:02:47.7]} 8... e6 {[%clk 0:02:47.9]} 9. g3 {[%clk 0:02:44.6]} 9... Be7 {[%clk
0:02:45.5]} 10. Ng2 {[%clk 0:02:44.5]} 10... h5 {[%clk 0:02:44.4]} 11. d4 {[%clk
0:02:44.2]} 11... Nf6 {[%clk 0:02:42.3]} 12. Bg5 {[%clk 0:02:34.3]} 12... O-O-O
{[%clk 0:02:35.9]} 13. d5 {[%clk 0:02:25.6]} 13... Ne5 {[%clk 0:02:34.3]} 14.
Nd2 {[%clk 0:02:10.4]} 14... Nxd5 {[%clk 0:02:31.2]} 15. Bxe7 {[%clk 0:02:07.5]}
15... Nxe7 {[%clk 0:02:31.2]} 16. b4 {[%clk 0:02:07]} 16... c4 {[%clk
0:02:23.4]} 17. Ne3 {[%clk 0:01:55.2]} 17... h4 {[%clk 0:02:17.7]} 18. Nexc4
{[%clk 0:01:51.3]} 18... hxg3 {[%clk 0:02:14.1]} 19. fxg3 {[%clk 0:01:46.5]}
19... N7g6 {[%clk 0:02:07]} 20. Qe2 {[%clk 0:01:45.2]} 20... Rh7 {[%clk
0:02:02.7]} 21. Rf1 {[%clk 0:01:38.3]} 21... Rdh8 {[%clk 0:02:02.1]} 22. Rf2
{[%clk 0:01:38.5]} 22... Qc7 {[%clk 0:02:00.3]} 23. Rd1 {[%clk 0:01:34.9]} 23...
Rd8 {[%clk 0:01:47.4]} 24. a4 {[%clk 0:01:26.2]} 24... Kb8 {[%clk 0:01:47.3]}
25. a5 {[%clk 0:01:18.9]} 25... Rd7 {[%clk 0:01:46.6]} 26. Nxe5 {[%clk
0:01:10.6]} 26... Nxe5 {[%clk 0:01:45.8]} 27. c4 {[%clk 0:01:10.8]} 27... Rh8
{[%clk 0:01:42.2]} 28. Rc1 {[%clk 0:01:10.2]} 28... Rc8 {[%clk 0:01:40.5]} 29.
c5 {[%clk 0:01:08.6]} 29... dxc5 {[%clk 0:01:40.3]} 30. Rxc5 {[%clk 0:01:07.4]}
30... Qd8 {[%clk 0:01:39.6]} 31. Rxe5 {[%clk 0:01:05.1]} 31... Rc2 {[%clk
0:01:38.2]} 32. Qxg4 {[%clk 0:00:29]} 32... Rdxd2 {[%clk 0:01:34.7]} 33. Rxd2
{[%clk 0:00:09.1]} 33... Qxd2 {[%clk 0:01:26.2]} 34. Qg8+ {[%clk 0:00:07.9]}
34... Rc8 {[%clk 0:01:26.2]} 35. Qxf7 {[%clk 0:00:06.5]} 35... Rc1+ {[%clk
0:01:25.2]} 36. Qf1 {[%clk 0:00:05.6]} 36... Qd4+ {[%clk 0:01:23.8]} 37. Kg2
{[%clk 0:00:04.9]} 37... Rxf1 {[%clk 0:01:23.7]} 38. Kxf1 {[%clk 0:00:03.9]}
38... Qxe5 {[%clk 0:01:23.4]} 0-1

[Event "*** SCC Grand Prix: Titled Tuesday Blitz"]
[Site "Chess.com"]
[Date "2020.10.06"]
[Round "1"]
[White "Nikolaj_6"]
[Black "Morshynska"]
[Result "1-0"]
[WhiteElo "2536"]
[BlackElo "2200"]
[TimeControl "180+1"]
[EndTime "10:06:16 PDT"]
[Termination "Nikolaj_6 won on time"]

1. d4 {[%clk 0:03:00.9]} 1... d5 {[%clk 0:02:59.8]} 2. Bf4 {[%clk 0:03:01.3]}
2... c6 {[%clk 0:03:00.6]} 3. e3 {[%clk 0:03:01.5]} 3... Bf5 {[%clk 0:02:59.3]}
4. c4 {[%clk 0:03:01.5]} 4... e6 {[%clk 0:02:59.3]} 5. Nc3 {[%clk 0:03:01.6]}
5... Nd7 {[%clk 0:02:58.6]} 6. Qb3 {[%clk 0:03:00.8]} 6... Qb6 {[%clk
0:02:55.1]} 7. Nf3 {[%clk 0:02:56.3]} 7... Qxb3 {[%clk 0:02:39.3]} 8. axb3
{[%clk 0:02:55.8]} 8... Bb4 {[%clk 0:02:39.9]} 9. Be2 {[%clk 0:02:42]} 9... Ngf6
{[%clk 0:02:37.1]} 10. O-O {[%clk 0:02:41.6]} 10... Ne4 {[%clk 0:02:33.9]} 11.
Rfc1 {[%clk 0:02:30.5]} 11... f6 {[%clk 0:02:13.9]} 12. h3 {[%clk 0:02:28.7]}
12... g5 {[%clk 0:02:04.1]} 13. Bh2 {[%clk 0:02:27.2]} 13... Kf7 {[%clk
0:02:01.8]} 14. Na2 {[%clk 0:02:11.9]} 14... Bd6 {[%clk 0:01:39.3]} 15. Bxd6
{[%clk 0:02:08.3]} 15... Nxd6 {[%clk 0:01:40.2]} 16. c5 {[%clk 0:02:07.3]} 16...
Ne4 {[%clk 0:01:32.2]} 17. b4 {[%clk 0:02:05.1]} 17... a6 {[%clk 0:01:29.2]} 18.
Nc3 {[%clk 0:02:03.7]} 18... Nxc3 {[%clk 0:01:20.8]} 19. bxc3 {[%clk 0:02:01.8]}
19... h5 {[%clk 0:01:08.9]} 20. Nd2 {[%clk 0:02:01.6]} 20... g4 {[%clk
0:01:00.2]} 21. h4 {[%clk 0:02:01.4]} 21... Rae8 {[%clk 0:00:47.2]} 22. g3
{[%clk 0:01:58]} 22... e5 {[%clk 0:00:40.4]} 23. Nb3 {[%clk 0:01:57.9]} 23...
Nf8 {[%clk 0:00:29.5]} 24. c4 {[%clk 0:01:45.5]} 24... Be6 {[%clk 0:00:24.5]}
25. Kf1 {[%clk 0:01:36.1]} 25... Ng6 {[%clk 0:00:20.2]} 26. Na5 {[%clk
0:01:33.3]} 26... Re7 {[%clk 0:00:19.7]} 27. b5 {[%clk 0:01:29.4]} 27... axb5
{[%clk 0:00:18.1]} 28. cxb5 {[%clk 0:01:28.6]} 28... Bd7 {[%clk 0:00:15.8]} 29.
Nxb7 {[%clk 0:01:26.8]} 29... f5 {[%clk 0:00:12]} 30. Nd6+ {[%clk 0:01:24.2]}
30... Kf6 {[%clk 0:00:11.9]} 31. b6 {[%clk 0:01:22.7]} 31... f4 {[%clk 0:00:10]}
32. b7 {[%clk 0:01:14.6]} 32... fxg3 {[%clk 0:00:07.8]} 33. fxg3 {[%clk
0:01:14.5]} 33... Kg7 {[%clk 0:00:07.9]} 34. Ra8 {[%clk 0:01:13.5]} 34... Ree8
{[%clk 0:00:01.2]} 35. Nxe8+ {[%clk 0:01:12.1]} 1-0

[Event "*** SCC Grand Prix: Titled Tuesday Blitz"]
[Site "Chess.com"]
[Date "2020.10.06"]
[Round "1"]
[White "Sacbutt"]
[Black "tornikesanikidze"]
[Result "0-1"]
[WhiteElo "2272"]
[BlackElo "2582"]
[TimeControl "180+1"]
[EndTime "10:06:25 PDT"]
[Termination "tornikesanikidze won by resignation"]

1. e4 {[%clk 0:02:58.9]} 1... c5 {[%clk 0:02:57.7]} 2. Nf3 {[%clk 0:02:57.3]}
2... d6 {[%clk 0:02:57.5]} 3. d4 {[%clk 0:02:57.4]} 3... cxd4 {[%clk 0:02:57.9]}
4. Nxd4 {[%clk 0:02:57.3]} 4... Nf6 {[%clk 0:02:58.8]} 5. Nc3 {[%clk 0:02:57.4]}
5... Nc6 {[%clk 0:02:58.5]} 6. Be3 {[%clk 0:02:56.2]} 6... Ng4 {[%clk
0:02:57.5]} 7. Bg5 {[%clk 0:02:50.8]} 7... h6 {[%clk 0:02:53.4]} 8. Nxc6 {[%clk
0:02:38.1]} 8... bxc6 {[%clk 0:02:51.6]} 9. Bh4 {[%clk 0:02:37]} 9... g5 {[%clk
0:02:47.2]} 10. Bg3 {[%clk 0:02:36.8]} 10... Bg7 {[%clk 0:02:47.3]} 11. Bd3
{[%clk 0:02:30]} 11... Rb8 {[%clk 0:02:43.4]} 12. Rb1 {[%clk 0:02:02]} 12...
Rxb2 {[%clk 0:02:41.9]} 13. Ne2 {[%clk 0:01:32.2]} 13... Qa5+ {[%clk 0:02:34]}
14. Kf1 {[%clk 0:01:32.3]} 14... Rxa2 {[%clk 0:02:32]} 15. h3 {[%clk 0:01:23.4]}
15... Ne5 {[%clk 0:02:29.7]} 16. Bxe5 {[%clk 0:01:21.9]} 16... Bxe5 {[%clk
0:02:29.1]} 17. g3 {[%clk 0:01:20.4]} 17... O-O {[%clk 0:02:22.1]} 18. h4 {[%clk
0:01:18.7]} 18... g4 {[%clk 0:02:13.7]} 19. Qc1 {[%clk 0:01:18]} 19... Kg7
{[%clk 0:02:11.4]} 20. h5 {[%clk 0:01:11.7]} 20... f5 {[%clk 0:02:00.1]} 21.
exf5 {[%clk 0:01:09.9]} 21... Bxf5 {[%clk 0:01:59.4]} 22. Bxf5 {[%clk 0:01:07]}
22... Rxf5 {[%clk 0:01:58.8]} 23. Rh4 {[%clk 0:01:07.6]} 23... Rg5 {[%clk
0:01:51.4]} 24. Kg2 {[%clk 0:00:53.6]} 24... Qd5+ {[%clk 0:01:47.1]} 25. Kh2
{[%clk 0:00:51.9]} 25... Qf3 {[%clk 0:01:44.2]} 26. Qf1 {[%clk 0:00:49.7]} 26...
Rxc2 {[%clk 0:01:42.2]} 27. Re1 {[%clk 0:00:36.2]} 27... Bxg3+ {[%clk
0:01:29.4]} 28. fxg3 {[%clk 0:00:28.4]} 28... Qxf1 {[%clk 0:01:28.8]} 29. Rxf1
{[%clk 0:00:29.3]} 29... Rxe2+ {[%clk 0:01:28.5]} 30. Kg1 {[%clk 0:00:27.3]}
30... a5 {[%clk 0:01:26.7]} 31. Ra1 {[%clk 0:00:26.5]} 31... Re3 {[%clk
0:01:10.5]} 32. Kf2 {[%clk 0:00:26.1]} 32... Rf3+ {[%clk 0:01:09.8]} 33. Kg2
{[%clk 0:00:25.9]} 33... Rff5 {[%clk 0:01:09.2]} 34. Ra4 {[%clk 0:00:25.3]}
34... Rxh5 {[%clk 0:01:08.3]} 35. Rhxg4+ {[%clk 0:00:23.1]} 35... Rhg5 {[%clk
0:01:08.4]} 36. Rge4 {[%clk 0:00:20.5]} 36... Re5 {[%clk 0:01:08.2]} 37. Rec4
{[%clk 0:00:20]} 37... Rc5 {[%clk 0:01:07.6]} 38. Re4 {[%clk 0:00:20]} 38... e5
{[%clk 0:01:07.7]} 39. Kf3 {[%clk 0:00:17.5]} 39... d5 {[%clk 0:01:07.6]} 40.
Re2 {[%clk 0:00:16.2]} 40... Rc3+ {[%clk 0:01:07.3]} 41. Re3 {[%clk 0:00:16.1]}
0-1

[Event "*** SCC Grand Prix: Titled Tuesday Blitz"]
[Site "Chess.com"]
[Date "2020.10.06"]
[Round "1"]
[White "GMaka"]
[Black "Meri-Arabidze"]
[Result "0-1"]
[WhiteElo "2367"]
[BlackElo "2705"]
[TimeControl "180+1"]
[EndTime "10:06:26 PDT"]
[Termination "Meri-Arabidze won by checkmate"]

1. Nf3 {[%clk 0:03:00.7]} 1... d5 {[%clk 0:02:59.5]} 2. b3 {[%clk 0:02:58.9]}
2... c5 {[%clk 0:02:54.9]} 3. Bb2 {[%clk 0:02:58.1]} 3... Nc6 {[%clk 0:02:54.7]}
4. e3 {[%clk 0:02:58.7]} 4... Nf6 {[%clk 0:02:52.5]} 5. Bb5 {[%clk 0:02:58.6]}
5... Bd7 {[%clk 0:02:51.1]} 6. O-O {[%clk 0:02:57.5]} 6... e6 {[%clk 0:02:49.9]}
7. d3 {[%clk 0:02:54.6]} 7... Be7 {[%clk 0:02:49.3]} 8. Nbd2 {[%clk 0:02:50.7]}
8... O-O {[%clk 0:02:49.1]} 9. Bxc6 {[%clk 0:02:50.7]} 9... Bxc6 {[%clk
0:02:48.7]} 10. Ne5 {[%clk 0:02:51.6]} 10... Rc8 {[%clk 0:02:48.7]} 11. Nxc6
{[%clk 0:02:45.5]} 11... Rxc6 {[%clk 0:02:48.5]} 12. Nf3 {[%clk 0:02:45.9]}
12... Nd7 {[%clk 0:02:41]} 13. Ne5 {[%clk 0:02:45.4]} 13... Nxe5 {[%clk
0:02:40.9]} 14. Bxe5 {[%clk 0:02:46.3]} 14... Bf6 {[%clk 0:02:38.5]} 15. f4
{[%clk 0:02:38.7]} 15... Bxe5 {[%clk 0:02:25.7]} 16. fxe5 {[%clk 0:02:39.6]}
16... Qg5 {[%clk 0:02:25.5]} 17. Qf3 {[%clk 0:02:27.4]} 17... Qxe5 {[%clk
0:02:23.9]} 18. Rae1 {[%clk 0:02:28]} 18... b5 {[%clk 0:02:17.5]} 19. e4 {[%clk
0:02:23.6]} 19... d4 {[%clk 0:02:16.7]} 20. Ra1 {[%clk 0:02:01.3]} 20... c4
{[%clk 0:02:10.9]} 21. bxc4 {[%clk 0:01:54.7]} 21... bxc4 {[%clk 0:02:11.8]} 22.
Rab1 {[%clk 0:01:55.3]} 22... cxd3 {[%clk 0:02:06.5]} 23. cxd3 {[%clk
0:01:54.6]} 23... Rc7 {[%clk 0:02:06.4]} 24. Rb4 {[%clk 0:01:49.8]} 24... h6
{[%clk 0:02:01.2]} 25. a4 {[%clk 0:01:44.2]} 25... f6 {[%clk 0:01:19.8]} 26.
Rfb1 {[%clk 0:01:31]} 26... Rfc8 {[%clk 0:01:17.1]} 27. g3 {[%clk 0:00:53.7]}
27... Rc2 {[%clk 0:01:07.6]} 28. R1b2 {[%clk 0:00:46.1]} 28... Qg5 {[%clk
0:00:58.6]} 29. Rxc2 {[%clk 0:00:28.8]} 29... Rxc2 {[%clk 0:00:59.5]} 30. Qf4
{[%clk 0:00:27.6]} 30... Qh5 {[%clk 0:00:57.5]} 31. g4 {[%clk 0:00:16.4]} 31...
Qh3 {[%clk 0:00:48.6]} 32. Qg3 {[%clk 0:00:16.7]} 32... Rc1+ {[%clk 0:00:47.3]}
33. Kf2 {[%clk 0:00:17.2]} 33... Qf1# {[%clk 0:00:47.4]} 0-1